[Event "New Zealand Rapid Championship"]
[Site "Wellington"]
[Date "2023.01.11"]
[Round "1.13"]
[White "Burns, Christopher J"]
[Black "Li, Cheng Yang (Charlie)"]
[Result "1-0"]
[TimeControl "25+5"]
[WhiteFideId "4300920"]
[BlackFideId "4306015"]
[WhiteElo "2031"]
[BlackElo "1468"]

1. e4 {[%clk 00:25:09]} e6 {[%clk 00:25:09]} {[%emt 00:00:01]} 2. d4 {[%clk
00:25:07]} {[%emt 00:00:06]} d5 {[%clk 00:25:13]} {[%emt 00:00:01]} 3. e5
{[%clk 00:25:07]} {[%emt 00:00:05]} c5 {[%clk 00:25:16]} {[%emt 00:00:02]} 4.
c3 {[%clk 00:25:11]} {[%emt 00:00:01]} Nc6 {[%clk 00:25:20]} {[%emt 00:00:01]}
5. Nf3 {[%clk 00:25:14]} {[%emt 00:00:02]} Qb6 {[%clk 00:25:20]} {[%emt
00:00:06]} 6. Bd3 {[%clk 00:25:08]} {[%emt 00:00:11]} cxd4 {[%clk 00:25:08]}
{[%emt 00:00:17]} 7. O-O {[%clk 00:25:09]} {[%emt 00:00:03]} Bd7 {[%clk
00:23:59]} {[%emt 00:01:14]} 8. Re1 {[%clk 00:24:39]} {[%emt 00:00:35]} Bc5
{[%clk 00:23:40]} {[%emt 00:00:24]} 9. Re2 {[%clk 00:23:27]} {[%emt 00:01:17]}
Nge7 {[%clk 00:22:08]} {[%emt 00:01:38]} 10. b4 {[%clk 00:23:13]} {[%emt
00:00:33]} dxc3 {[%clk 00:18:15]} {[%emt 00:03:50]} 11. bxc5 {[%clk 00:23:16]}
Qxc5 {[%clk 00:18:18]} 12. Ba3 {[%clk 00:22:23]} {[%emt 00:00:56]} Qa5 {[%clk
00:18:21]} 13. Qb3 {[%clk 00:21:59]} {[%emt 00:00:42]} d4 {[%clk 00:14:25]}
{[%emt 00:03:49]} 14. Bd6 {[%clk 00:21:54]} {[%emt 00:00:10]} Qb6 {[%clk
00:13:16]} {[%emt 00:01:14]} 15. Na3 {[%clk 00:21:09]} {[%emt 00:00:50]} Qxb3
{[%clk 00:11:59]} {[%emt 00:01:22]} 16. axb3 {[%clk 00:21:12]} {[%emt
00:00:03]} a6 {[%clk 00:12:02]} {[%emt 00:00:02]} 17. Nc2 {[%clk 00:20:58]}
{[%emt 00:00:18]} f6 {[%clk 00:10:43]} {[%emt 00:01:25]} 18. exf6 {[%clk
00:19:34]} {[%emt 00:01:30]} gxf6 {[%clk 00:10:46]} 19. Nfxd4 {[%clk 00:19:25]}
{[%emt 00:00:15]} Kf7 {[%clk 00:10:44]} {[%emt 00:00:07]} 20. Bc4 {[%clk
00:18:58]} {[%emt 00:00:37]} Nd5 {[%clk 00:09:19]} {[%emt 00:01:26]} 21. Nxc6
{[%clk 00:18:02]} {[%emt 00:01:00]} Bxc6 {[%clk 00:09:19]} {[%emt 00:00:06]} 22.
Nd4 {[%clk 00:18:05]} {[%emt 00:00:02]} Rhe8 {[%clk 00:08:04]} {[%emt
00:01:20]} 23. Nxc6 {[%clk 00:17:05]} {[%emt 00:01:08]} bxc6 {[%clk 00:08:07]}
24. g3 {[%clk 00:16:28]} {[%emt 00:00:40]} a5 {[%clk 00:07:23]} {[%emt
00:00:50]} 25. f4 {[%clk 00:15:53]} {[%emt 00:00:40]} Nb6 {[%clk 00:06:46]}
{[%emt 00:00:41]} 26. Bd3 {[%clk 00:13:42]} {[%emt 00:02:17]} Red8 {[%clk
00:06:22]} {[%emt 00:00:30]} 27. Bc5 {[%clk 00:12:38]} {[%emt 00:01:09]} Rxd3
{[%clk 00:06:22]} {[%emt 00:00:12]} 28. Bxb6 {[%clk 00:12:42]} Rd2 {[%clk
00:05:30]} {[%emt 00:00:52]} 29. Kf1 {[%clk 00:11:33]} {[%emt 00:01:13]} Rb2
{[%clk 00:04:48]} {[%emt 00:00:47]} 30. Rxb2 {[%clk 00:10:11]} {[%emt
00:01:28]} cxb2 {[%clk 00:04:51]} {[%emt 00:00:02]} 31. Rb1 {[%clk 00:10:14]}
{[%emt 00:00:02]} Rb8 {[%clk 00:04:55]} 32. Bxa5 {[%clk 00:10:04]} {[%emt
00:00:15]} Rxb3 {[%clk 00:04:58]} {[%emt 00:00:01]} 33. Ke2 {[%clk 00:10:00]}
{[%emt 00:00:16]} c5 {[%clk 00:02:46]} {[%emt 00:02:11]} 34. Kd2 {[%clk
00:09:54]} {[%emt 00:00:11]} c4 {[%clk 00:02:44]} {[%emt 00:00:07]} 35. Bc3
{[%clk 00:09:28]} {[%emt 00:00:31]} Kg6 {[%clk 00:01:40]} {[%emt 00:01:10]} 36.
Rxb2 {[%clk 00:09:31]} {[%emt 00:00:02]} f5 {[%clk 00:01:17]} {[%emt 00:00:28]}
37. Rxb3 {[%clk 00:09:19]} {[%emt 00:00:18]} cxb3 {[%clk 00:01:20]} {[%emt
00:00:01]} 38. Ke3 {[%clk 00:09:12]} {[%emt 00:00:12]} h5 {[%clk 00:00:56]}
{[%emt 00:00:29]} 39. h4 {[%clk 00:09:08]} {[%emt 00:00:09]} Kf7 {[%clk
00:00:54]} {[%emt 00:00:07]} 40. Kd4 {[%clk 00:09:11]} {[%emt 00:00:02]} Ke8
{[%clk 00:00:22]} {[%emt 00:00:37]} 41. Ke5 {[%clk 00:09:13]} {[%emt 00:00:04]}
Ke7 {[%clk 00:00:26]} {[%emt 00:00:02]} 42. Bb4+ {[%clk 00:09:16]} {[%emt
00:00:02]} Kf7 {[%clk 00:00:30]} {[%emt 00:00:01]} 43. Ba3 {[%clk 00:09:20]}
{[%emt 00:00:02]} b2 {[%clk 00:00:08]} {[%emt 00:00:26]} 44. Bxb2 {[%clk
00:09:24]} Ke7 {[%clk 00:00:12]} {[%emt 00:00:01]} 45. Ba3+ {[%clk 00:09:28]}
{[%emt 00:00:01]} Kf7 {[%clk 00:00:16]} 46. Bb4 {[%clk 00:09:32]} 1-0

[Event "New Zealand Rapid Championship"]
[Site "Wellington"]
[Date "2023.01.11"]
[Round "1.14"]
[White "Liu, Richard Jingjie"]
[Black "Nyberg, Michael"]
[Result "0-1"]
[TimeControl "25+5"]
[WhiteFideId "4316967"]
[BlackFideId "4301064"]
[WhiteElo "1154"]
[BlackElo "1951"]

1. e4 {[%clk 00:25:09]} e5 {[%clk 00:24:03]} {[%emt 00:01:07]} 2. Nf3 {[%clk
00:25:12]} {[%emt 00:00:03]} Nc6 {[%clk 00:23:57]} {[%emt 00:00:11]} 3. Bc4
{[%clk 00:25:16]} {[%emt 00:00:01]} Nf6 {[%clk 00:23:50]} {[%emt 00:00:12]} 4.
Ng5 {[%clk 00:25:20]} {[%emt 00:00:01]} d5 {[%clk 00:23:43]} {[%emt 00:00:11]}
5. exd5 {[%clk 00:25:24]} {[%emt 00:00:02]} Na5 {[%clk 00:23:39]} {[%emt
00:00:10]} 6. Bb5+ {[%clk 00:25:27]} {[%emt 00:00:01]} c6 {[%clk 00:23:32]}
{[%emt 00:00:11]} 7. dxc6 {[%clk 00:25:30]} {[%emt 00:00:03]} bxc6 {[%clk
00:23:30]} {[%emt 00:00:07]} 8. Bd3 {[%clk 00:25:35]} Nd5 {[%clk 00:22:58]}
{[%emt 00:00:36]} 9. Ne4 {[%clk 00:25:24]} {[%emt 00:00:17]} Be6 {[%clk
00:21:41]} {[%emt 00:01:21]} 10. a3 {[%clk 00:25:01]} {[%emt 00:00:30]} Nf4
{[%clk 00:20:44]} {[%emt 00:01:00]} 11. Qf3 {[%emt 00:00:34]} Nxd3+ {[%clk
00:20:05]} {[%emt 00:00:39]} 12. Qxd3 {[%clk 00:24:38]} {[%emt 00:00:05]} Qxd3
{[%clk 00:19:36]} {[%emt 00:00:34]} 13. cxd3 {[%clk 00:24:40]} Rd8 {[%clk
00:19:40]} {[%emt 00:00:15]} 14. b4 {[%emt 00:00:24]} Nb7 15. Bb2 {[%clk
00:24:33]} {[%emt 00:00:07]} f6 {[%clk 00:18:26]} {[%emt 00:00:59]} 16. Ke2
{[%clk 00:21:57]} {[%emt 00:02:42]} Be7 {[%clk 00:18:18]} {[%emt 00:00:12]} 17.
Rc1 {[%clk 00:21:40]} {[%emt 00:00:22]} Bd5 {[%clk 00:17:05]} {[%emt 00:01:21]}
18. Nbc3 {[%clk 00:21:38]} {[%emt 00:00:04]} O-O {[%clk 00:16:48]} {[%emt
00:00:22]} 19. Nxd5 {[%clk 00:21:34]} {[%emt 00:00:10]} cxd5 {[%clk 00:16:52]}
{[%emt 00:00:01]} 20. Nc5 {[%clk 00:21:38]} {[%emt 00:00:01]} Bxc5 {[%clk
00:15:29]} {[%emt 00:01:27]} 21. bxc5 {[%clk 00:21:42]} {[%emt 00:00:01]} Na5
{[%clk 00:15:12]} {[%emt 00:00:22]} 22. Rab1 {[%clk 00:20:20]} {[%emt
00:01:07]} Nb3 {[%clk 00:14:08]} 23. Rc3 {[%clk 00:20:20]} {[%emt 00:01:34]}
Nd4+ {[%emt 00:00:17]} 24. Ke3 {[%clk 00:19:58]} {[%emt 00:00:23]} Rb8 {[%clk
00:13:54]} {[%emt 00:00:11]} 25. Rcc1 {[%clk 00:19:33]} {[%emt 00:00:30]} Nb3
{[%clk 00:13:41]} {[%emt 00:00:17]} 26. Rc3 {[%clk 00:19:32]} {[%emt 00:00:06]}
d4+ {[%clk 00:13:39]} {[%emt 00:00:07]} 27. Ke2 {[%clk 00:18:41]} {[%emt
00:00:56]} dxc3 {[%clk 00:13:32]} {[%emt 00:00:11]} 28. dxc3 {[%clk 00:18:41]}
{[%emt 00:00:06]} Nxc5 {[%clk 00:13:27]} {[%emt 00:00:10]} 29. d4 {[%clk
00:18:45]} {[%emt 00:00:01]} exd4 {[%clk 00:13:17]} {[%emt 00:00:14]} 30. cxd4
{[%clk 00:18:47]} {[%emt 00:00:01]} Na4 {[%clk 00:13:14]} {[%emt 00:00:10]} 0-1

[Event "New Zealand Rapid Championship"]
[Site "Wellington"]
[ePGN "0.1;DGT LiveChess/2.2.5"]
[Date "2023.01.11"]
[Round "2.1"]
[White "Shoker, Samy"]
[Black "Wang, Justin Zhide"]
[Result "1-0"]
[TimeControl "25+5"]
[WhiteTitle "GM"]
[WhiteFideId "627143"]
[BlackFideId "4312830"]
[WhiteElo "2440"]
[BlackElo "1619"]

1. Nf3 {[%clk 00:25:08]} {[%emt 00:00:02]} e6 {[%clk 00:25:06]} {[%emt
00:00:05]} 2. g3 {[%clk 00:25:08]} {[%emt 00:00:05]} Nf6 {[%clk 00:25:01]}
{[%emt 00:00:10]} 3. Bg2 {[%clk 00:25:11]} {[%emt 00:00:01]} d5 {[%clk
00:24:58]} {[%emt 00:00:08]} 4. O-O {[%clk 00:25:14]} {[%emt 00:00:03]} Be7
{[%clk 00:24:58]} {[%emt 00:00:05]} 5. c4 {[%clk 00:25:18]} {[%emt 00:00:01]}
c6 {[%clk 00:24:58]} {[%emt 00:00:04]} 6. b3 {[%clk 00:25:22]} {[%emt
00:00:02]} O-O {[%clk 00:24:57]} {[%emt 00:00:06]} 7. Bb2 {[%clk 00:25:25]}
{[%emt 00:00:01]} Bd6 {[%clk 00:24:45]} {[%emt 00:00:17]} 8. d3 {[%clk
00:25:15]} {[%emt 00:00:16]} Nbd7 {[%clk 00:24:44]} {[%emt 00:00:07]} 9. Nc3
{[%clk 00:24:56]} {[%emt 00:00:23]} b6 {[%clk 00:24:27]} {[%emt 00:00:22]} 10.
cxd5 {[%clk 00:23:10]} {[%emt 00:01:52]} cxd5 {[%clk 00:24:19]} {[%emt
00:00:13]} 11. Nb5 {[%clk 00:23:13]} {[%emt 00:00:02]} Qe7 {[%clk 00:23:31]}
{[%emt 00:00:52]} 12. Nxd6 {[%clk 00:23:15]} {[%emt 00:00:04]} Qxd6 {[%clk
00:23:28]} {[%emt 00:00:08]} 13. a4 {[%clk 00:23:01]} {[%emt 00:00:18]} Rd8
{[%clk 00:23:01]} {[%emt 00:00:32]} 14. Ba3 {[%clk 00:23:04]} {[%emt 00:00:03]}
Qb8 {[%clk 00:22:52]} {[%emt 00:00:14]} 15. Nd4 {[%clk 00:21:05]} {[%emt
00:02:03]} Bb7 {[%clk 00:22:45]} {[%emt 00:00:12]} 16. Nb5 {[%clk 00:21:07]}
{[%emt 00:00:03]} Nf8 {[%clk 00:22:07]} {[%emt 00:00:42]} 17. Be7 {[%clk
00:20:39]} {[%emt 00:00:33]} Rd7 {[%clk 00:21:54]} {[%emt 00:00:18]} 18. Bxf6
{[%clk 00:20:39]} {[%emt 00:00:06]} gxf6 {[%clk 00:21:51]} {[%emt 00:00:07]} 19.
d4 {[%clk 00:20:38]} {[%emt 00:00:06]} a6 {[%clk 00:19:53]} {[%emt 00:02:04]}
20. Nc3 {[%clk 00:20:38]} {[%emt 00:00:06]} Qc7 {[%clk 00:19:53]} {[%emt
00:00:05]} 21. Rc1 {[%clk 00:20:18]} {[%emt 00:00:24]} Qd6 {[%clk 00:19:30]}
{[%emt 00:00:27]} 22. e3 {[%clk 00:19:07]} {[%emt 00:01:16]} Rc8 {[%clk
00:18:44]} {[%emt 00:00:52]} 23. Qg4+ {[%clk 00:19:09]} {[%emt 00:00:03]} Kh8
{[%clk 00:18:43]} {[%emt 00:00:06]} 24. Ne2 {[%clk 00:18:10]} {[%emt 00:01:04]}
Rxc1 {[%clk 00:17:52]} {[%emt 00:00:57]} 25. Rxc1 {[%clk 00:18:12]} {[%emt
00:00:02]} Rc7 {[%clk 00:17:51]} {[%emt 00:00:06]} 26. Rxc7 {[%clk 00:15:42]}
{[%emt 00:02:36]} Qxc7 {[%clk 00:17:55]} 27. Qh4 {[%clk 00:15:46]} {[%emt
00:00:02]} Qe7 {[%clk 00:16:20]} {[%emt 00:01:39]} 28. Qf4 {[%clk 00:15:17]}
{[%emt 00:00:33]} e5 {[%clk 00:15:16]} {[%emt 00:01:09]} 29. Qh6 {[%clk
00:13:39]} {[%emt 00:01:42]} Ne6 {[%clk 00:13:53]} {[%emt 00:01:30]} 30. h4
{[%clk 00:12:59]} {[%emt 00:00:45]} a5 {[%clk 00:12:05]} {[%emt 00:01:54]} 31.
Bh3 {[%clk 00:11:15]} {[%emt 00:01:48]} Ng7 {[%clk 00:10:45]} {[%emt 00:01:25]}
32. dxe5 {[%clk 00:10:44]} {[%emt 00:00:37]} Qxe5 {[%clk 00:10:29]} {[%emt
00:00:20]} 33. Nd4 {[%clk 00:10:33]} {[%emt 00:00:16]} Kg8 {[%clk 00:09:38]}
{[%emt 00:00:56]} 34. Bf1 {[%clk 00:09:20]} {[%emt 00:01:17]} Ne6 {[%clk
00:08:50]} {[%emt 00:00:54]} 35. Bd3 {[%clk 00:08:52]} {[%emt 00:00:33]} 1-0

[Event "New Zealand Rapid Championship"]
[Site "Wellington"]
[Date "2023.01.11"]
[Round "2.2"]
[White "Hague, Ben"]
[Black "Wells, Clinton A"]
[Result "1-0"]
[TimeControl "25+5"]
[WhiteTitle "FM"]
[WhiteFideId "405647"]
[BlackFideId "4301188"]
[WhiteElo "2410"]
[BlackElo "1785"]

1. d4 {[%clk 00:25:08]} {[%emt 00:00:01]} d6 {[%clk 00:25:01]} {[%emt
00:00:09]} 2. e4 {[%clk 00:25:10]} {[%emt 00:00:03]} Nf6 {[%clk 00:25:02]}
{[%emt 00:00:04]} 3. Nc3 {[%clk 00:25:13]} {[%emt 00:00:02]} c6 {[%clk
00:25:06]} {[%emt 00:00:01]} 4. f4 {[%clk 00:25:13]} {[%emt 00:00:05]} Qa5
{[%clk 00:24:52]} {[%emt 00:00:20]} 5. e5 {[%clk 00:24:55]} {[%emt 00:00:22]}
Ne4 {[%clk 00:24:25]} {[%emt 00:00:32]} 6. Qf3 {[%clk 00:24:39]} {[%emt
00:00:20]} Nxc3 {[%clk 00:23:45]} {[%emt 00:00:46]} 7. Bd2 {[%clk 00:24:33]}
{[%emt 00:00:11]} Qd5 {[%clk 00:23:47]} {[%emt 00:00:03]} 8. Qxc3 {[%clk
00:24:29]} {[%emt 00:00:08]} Bg4 {[%clk 00:22:54]} {[%emt 00:00:59]} 9. Qe3
{[%clk 00:22:41]} {[%emt 00:01:58]} dxe5 {[%clk 00:21:02]} {[%emt 00:01:53]} 10.
fxe5 {[%clk 00:22:16]} {[%emt 00:00:30]} h5 {[%clk 00:20:29]} {[%emt 00:00:37]}
11. c4 {[%clk 00:21:22]} {[%emt 00:00:58]} Qd7 {[%clk 00:17:48]} {[%emt
00:02:48]} 12. h3 {[%clk 00:20:54]} {[%emt 00:00:32]} Bf5 {[%clk 00:17:48]}
{[%emt 00:00:04]} 13. Nf3 {[%clk 00:20:56]} {[%emt 00:00:03]} g6 {[%clk
00:17:10]} {[%emt 00:00:44]} 14. Qc3 {[%clk 00:20:02]} {[%emt 00:00:59]} Na6
{[%clk 00:14:41]} {[%emt 00:02:33]} 15. b4 {[%clk 00:18:48]} {[%emt 00:01:19]}
Nc7 {[%clk 00:14:04]} {[%emt 00:00:43]} 16. Be2 {[%clk 00:18:26]} {[%emt
00:00:28]} Bh6 {[%clk 00:12:53]} {[%emt 00:01:15]} 17. Bxh6 {[%clk 00:18:00]}
{[%emt 00:00:32]} Rxh6 {[%clk 00:12:56]} {[%emt 00:00:02]} 18. O-O {[%clk
00:15:11]} {[%emt 00:02:53]} Ne6 {[%clk 00:10:30]} {[%emt 00:02:32]} 19. Rad1
{[%clk 00:14:52]} {[%emt 00:00:24]} Nf4 {[%clk 00:10:14]} {[%emt 00:00:27]} 20.
Qe3 {[%clk 00:14:34]} {[%emt 00:00:17]} g5 {[%clk 00:09:04]} {[%emt 00:01:15]}
21. Nxg5 {[%clk 00:13:14]} {[%emt 00:01:25]} Nxe2+ {[%clk 00:06:58]} {[%emt
00:02:11]} 22. Qxe2 {[%clk 00:13:17]} {[%emt 00:00:02]} e6 {[%clk 00:06:07]}
{[%emt 00:00:56]} 23. Ne4 {[%clk 00:11:45]} {[%emt 00:01:38]} Bxe4 {[%clk
00:05:47]} {[%emt 00:00:26]} 24. Qxe4 {[%clk 00:11:48]} {[%emt 00:00:01]} O-O-O
{[%clk 00:05:27]} {[%emt 00:00:24]} 25. Rf4 {[%clk 00:11:46]} {[%emt 00:00:06]}
Qe7 {[%clk 00:05:17]} {[%emt 00:00:17]} 26. a3 {[%clk 00:11:38]} {[%emt
00:00:14]} Rg6 {[%clk 00:04:45]} {[%emt 00:00:37]} 27. Rdf1 {[%clk 00:11:34]}
{[%emt 00:00:08]} Rf8 {[%clk 00:04:33]} {[%emt 00:00:17]} 28. Qxg6 {[%clk
00:11:31]} {[%emt 00:00:08]} 1-0

[Event "New Zealand Rapid Championship"]
[Site "Wellington"]
[Date "2023.01.11"]
[Round "2.3"]
[White "Van Riemsdijk, Herman C."]
[Black "Malcolm, Aidan"]
[Result "1-0"]
[TimeControl "25+5"]
[WhiteTitle "IM"]
[WhiteFideId "2100053"]
[BlackFideId "4315073"]
[WhiteElo "2370"]
[BlackElo "1593"]

1. e4 {[%clk 00:25:08]} {[%emt 00:00:01]} d6 {[%clk 00:24:51]} {[%emt
00:00:20]} 2. d4 {[%clk 00:25:08]} {[%emt 00:00:05]} Nf6 {[%clk 00:24:51]}
{[%emt 00:00:05]} 3. Nc3 {[%clk 00:25:11]} {[%emt 00:00:02]} Nbd7 {[%clk
00:24:48]} {[%emt 00:00:07]} 4. f4 {[%clk 00:25:04]} {[%emt 00:00:12]} e5
{[%clk 00:24:47]} {[%emt 00:00:07]} 5. Nf3 {[%clk 00:24:49]} {[%emt 00:00:20]}
exd4 {[%clk 00:24:44]} {[%emt 00:00:07]} 6. Qxd4 {[%clk 00:24:37]} {[%emt
00:00:17]} c6 {[%clk 00:24:39]} {[%emt 00:00:10]} 7. Be3 {[%clk 00:24:05]}
{[%emt 00:00:37]} d5 {[%clk 00:24:03]} {[%emt 00:00:43]} 8. e5 {[%clk
00:23:08]} {[%emt 00:01:01]} Ng4 {[%clk 00:22:47]} {[%emt 00:01:21]} 9. Bg1
{[%clk 00:23:06]} {[%emt 00:00:07]} Bc5 {[%clk 00:20:25]} {[%emt 00:02:27]} 10.
Qd2 {[%clk 00:23:06]} {[%emt 00:00:05]} Bxg1 {[%clk 00:19:20]} {[%emt
00:01:14]} 11. Rxg1 {[%clk 00:23:05]} {[%emt 00:00:01]} Qb6 {[%clk 00:19:07]}
{[%emt 00:00:18]} 12. Na4 {[%clk 00:20:00]} {[%emt 00:03:10]} Qe3+ {[%clk
00:15:56]} {[%emt 00:03:17]} 13. Qxe3 {[%clk 00:19:55]} {[%emt 00:00:09]} Nxe3
{[%clk 00:15:54]} {[%emt 00:00:06]} 14. Bd3 {[%clk 00:19:33]} {[%emt 00:00:28]}
c5 {[%clk 00:13:37]} {[%emt 00:02:22]} 15. Ke2 {[%clk 00:17:40]} {[%emt
00:01:58]} d4 {[%clk 00:12:46]} {[%emt 00:00:56]} 16. c4 {[%clk 00:15:19]}
{[%emt 00:02:26]} b6 {[%clk 00:08:49]} {[%emt 00:04:03]} 17. Nc3 {[%clk
00:13:17]} {[%emt 00:02:07]} Nxc4 {[%clk 00:03:21]} {[%emt 00:05:32]} 18. Nb5
{[%clk 00:11:25]} {[%emt 00:01:57]} Nxb2 {[%clk 00:01:47]} {[%emt 00:01:40]} 19.
Nd6+ {[%clk 00:11:17]} {[%emt 00:00:11]} Ke7 {[%clk 00:00:49]} {[%emt
00:01:04]} 20. Bb5 {[%emt 00:02:11]} 1-0

[Event "New Zealand Rapid Championship"]
[Site "Wellington"]
[Date "2023.01.11"]
[Round "2.4"]
[White "Ha, Timothy Huy Minh"]
[Black "Dive, Russell J"]
[Result "1/2-1/2"]
[TimeControl "25+5"]
[BlackTitle "IM"]
[WhiteFideId "12417246"]
[BlackFideId "4300106"]
[WhiteElo "1549"]
[BlackElo "2367"]

1. d4 {[%clk 00:25:07]} {[%emt 00:00:02]} Nf6 {[%clk 00:25:08]} {[%emt
00:00:02]} 2. Nf3 {[%clk 00:25:11]} {[%emt 00:00:02]} c5 {[%clk 00:24:55]}
{[%emt 00:00:18]} 3. d5 {[%clk 00:24:57]} {[%emt 00:00:19]} g6 {[%clk
00:24:54]} {[%emt 00:00:06]} 4. Nc3 {[%clk 00:24:59]} {[%emt 00:00:03]} Bg7
{[%clk 00:24:57]} {[%emt 00:00:01]} 5. Nd2 {[%clk 00:25:01]} {[%emt 00:00:02]}
O-O {[%clk 00:24:10]} {[%emt 00:00:52]} 6. e4 {[%clk 00:25:04]} {[%emt
00:00:02]} d6 {[%clk 00:24:14]} {[%emt 00:00:02]} 7. Be2 {[%clk 00:25:07]}
{[%emt 00:00:02]} Na6 {[%clk 00:24:00]} {[%emt 00:00:19]} 8. O-O {[%clk
00:25:01]} {[%emt 00:00:10]} Nc7 {[%clk 00:24:03]} {[%emt 00:00:02]} 9. a4
{[%clk 00:24:56]} {[%emt 00:00:10]} b6 {[%clk 00:23:55]} {[%emt 00:00:14]} 10.
Rb1 {[%clk 00:23:54]} {[%emt 00:01:07]} Rb8 {[%clk 00:23:49]} {[%emt 00:00:11]}
11. Qe1 {[%clk 00:23:28]} {[%emt 00:00:30]} a6 {[%clk 00:23:52]} {[%emt
00:00:03]} 12. f4 {[%clk 00:22:19]} {[%emt 00:01:14]} b5 {[%clk 00:23:51]}
{[%emt 00:00:11]} 13. axb5 {[%clk 00:22:21]} axb5 {[%clk 00:23:54]} 14. Bf3
{[%clk 00:22:00]} {[%emt 00:00:25]} b4 {[%clk 00:23:54]} {[%emt 00:00:06]} 15.
Nd1 {[%clk 00:22:03]} {[%emt 00:00:02]} Ba6 {[%clk 00:23:35]} {[%emt 00:00:24]}
16. Be2 {[%clk 00:21:57]} {[%emt 00:00:11]} Bxe2 {[%clk 00:23:24]} {[%emt
00:00:16]} 17. Qxe2 {[%clk 00:22:00]} {[%emt 00:00:02]} Nb5 {[%clk 00:23:27]}
{[%emt 00:00:02]} 18. Nf3 {[%clk 00:21:37]} {[%emt 00:00:27]} Qb6 {[%clk
00:22:47]} {[%emt 00:00:45]} 19. h3 {[%clk 00:20:57]} {[%emt 00:00:45]} e6
{[%clk 00:22:33]} {[%emt 00:00:20]} 20. dxe6 {[%clk 00:20:00]} {[%emt
00:01:02]} fxe6 {[%clk 00:22:35]} {[%emt 00:00:02]} 21. c4 {[%clk 00:16:43]}
{[%emt 00:03:22]} bxc3 {[%clk 00:22:14]} {[%emt 00:00:27]} 22. bxc3 {[%clk
00:16:37]} {[%emt 00:00:12]} Qc6 {[%clk 00:20:21]} {[%emt 00:01:57]} 23. e5
{[%clk 00:15:28]} {[%emt 00:01:13]} dxe5 {[%clk 00:19:41]} {[%emt 00:00:45]} 24.
Nxe5 {[%clk 00:15:11]} {[%emt 00:00:22]} Qe8 {[%clk 00:18:05]} {[%emt
00:01:41]} 25. Qd3 {[%clk 00:12:01]} {[%emt 00:03:14]} Nd5 {[%clk 00:17:37]}
{[%emt 00:00:34]} 26. Bd2 {[%clk 00:10:43]} {[%emt 00:01:22]} c4 {[%clk
00:11:57]} {[%emt 00:05:47]} 27. Qxc4 {[%clk 00:08:01]} {[%emt 00:02:47]} Na3
{[%clk 00:11:30]} {[%emt 00:00:32]} 28. Rxb8 {[%clk 00:08:01]} {[%emt
00:00:04]} Qxb8 {[%clk 00:11:33]} {[%emt 00:00:02]} 29. Qe2 {[%clk 00:07:57]}
{[%emt 00:00:05]} Qa7+ {[%clk 00:10:47]} {[%emt 00:00:55]} 30. Kh2 {[%clk
00:07:27]} {[%emt 00:00:35]} Nb1 {[%clk 00:10:37]} {[%emt 00:00:18]} 31. Bc1
{[%clk 00:06:00]} {[%emt 00:01:29]} Nbxc3 {[%clk 00:10:32]} {[%emt 00:00:10]}
32. Nxc3 {[%clk 00:06:04]} {[%emt 00:00:03]} Nxc3 {[%clk 00:10:35]} {[%emt
00:00:02]} 33. Qc4 {[%clk 00:05:47]} {[%emt 00:00:22]} Nd5 {[%clk 00:10:31]}
{[%emt 00:00:09]} 34. Qe2 {[%clk 00:05:44]} {[%emt 00:00:06]} Qa4 {[%clk
00:09:17]} {[%emt 00:01:21]} 35. Nxg6 {[%clk 00:05:25]} {[%emt 00:00:24]} Re8
{[%clk 00:08:36]} {[%emt 00:00:46]} 36. Ne5 {[%clk 00:05:20]} {[%emt 00:00:10]}
Nc3 {[%clk 00:07:21]} {[%emt 00:01:20]} 37. Qc4 {[%clk 00:04:46]} {[%emt
00:00:38]} Qxc4 {[%clk 00:07:09]} {[%emt 00:00:18]} 38. Nxc4 {[%clk 00:04:49]}
{[%emt 00:00:02]} Ne2 {[%clk 00:07:12]} {[%emt 00:00:02]} 39. Be3 {[%clk
00:04:27]} {[%emt 00:00:27]} Rc8 {[%clk 00:07:10]} {[%emt 00:00:07]} 40. Ne5
{[%clk 00:04:24]} {[%emt 00:00:08]} Rc3 {[%clk 00:07:11]} {[%emt 00:00:04]} 41.
Bg1 {[%clk 00:04:13]} {[%emt 00:00:16]} Nxf4 {[%clk 00:07:03]} {[%emt
00:00:14]} 42. Bd4 {[%clk 00:03:46]} {[%emt 00:00:31]} Ne2 {[%clk 00:06:07]}
{[%emt 00:01:02]} 43. Bxc3 {[%clk 00:03:45]} {[%emt 00:00:06]} Nxc3 {[%clk
00:06:11]} {[%emt 00:00:02]} 44. Nf3 {[%clk 00:03:43]} {[%emt 00:00:06]} Bf6
{[%clk 00:06:07]} {[%emt 00:00:09]} 45. Rc1 {[%clk 00:03:39]} {[%emt 00:00:08]}
Kf7 {[%clk 00:06:06]} {[%emt 00:00:07]} 46. g4 {[%clk 00:03:16]} {[%emt
00:00:29]} Kg6 {[%clk 00:05:20]} {[%emt 00:00:50]} 47. Kg2 {[%clk 00:03:14]}
{[%emt 00:00:06]} Nd5 {[%clk 00:05:08]} {[%emt 00:00:18]} 48. Rc6 {[%clk
00:03:03]} {[%emt 00:00:16]} h5 {[%clk 00:05:06]} {[%emt 00:00:07]} 49. g5
{[%clk 00:02:54]} {[%emt 00:00:14]} Nf4+ {[%clk 00:04:57]} {[%emt 00:00:14]} 50.
Kg3 {[%clk 00:02:42]} {[%emt 00:00:16]} Bxg5 {[%clk 00:04:59]} {[%emt
00:00:04]} 51. Nxg5 {[%clk 00:02:05]} {[%emt 00:00:43]} Kxg5 {[%clk 00:05:03]}
52. h4+ {[%clk 00:02:04]} {[%emt 00:00:06]} Kf5 {[%clk 00:05:00]} {[%emt
00:00:08]} 53. Ra6 {[%clk 00:02:05]} {[%emt 00:00:02]} Nd5 {[%clk 00:04:58]}
{[%emt 00:00:09]} 54. Ra8 {[%clk 00:02:06]} {[%emt 00:00:04]} Nf6 {[%clk
00:04:51]} {[%emt 00:00:11]} 55. Rh8 {[%clk 00:01:58]} {[%emt 00:00:13]} e5
{[%clk 00:04:53]} {[%emt 00:00:04]} 56. Kf3 {[%clk 00:01:56]} {[%emt 00:00:06]}
e4+ {[%clk 00:04:56]} {[%emt 00:00:03]} 57. Kg3 {[%clk 00:01:26]} {[%emt
00:00:35]} e3 {[%clk 00:04:33]} {[%emt 00:00:28]} 58. Ra8 {[%clk 00:01:24]}
{[%emt 00:00:07]} Ke4 {[%clk 00:03:34]} {[%emt 00:01:04]} 59. Ra4+ {[%clk
00:01:19]} {[%emt 00:00:10]} Kd3 {[%clk 00:03:37]} {[%emt 00:00:02]} 60. Ra3+
{[%clk 00:00:53]} {[%emt 00:00:31]} Ke4 {[%clk 00:03:21]} {[%emt 00:00:20]} 61.
Ra4+ {[%clk 00:00:55]} {[%emt 00:00:03]} Kd3 {[%clk 00:03:24]} {[%emt
00:00:02]} 1/2-1/2